[Event "Asian Nation Cup Women 2018"]
[Site "Hamedan"]
[Date "2018.07.29"]
[Round "2"]
[White "Dauletova, Gulmira"]
[Black "Nguyen, Thi Mai Hung"]
[Result "1/2-1/2"]
[ECO "B32"]
[WhiteElo "2287"]
[BlackElo "2226"]
[Annotator "NA"]
[PlyCount "108"]
[EventDate "2018.07.27"]
[EventType "swiss"]
[EventCountry "IRI"]
[SourceTitle "playchess.com"]
[Source "ChessBase"]
[SourceQuality "1"]
[WhiteTeam "Uzbekistan"]
[BlackTeam "Iran"]
[WhiteTeamCountry "UZB"]
[BlackTeamCountry "IRI"]
[TimeControl "40/5400+30:1800+30"]

1. e4 c5 2. Nf3 Nc6 3. d4 cxd4 4. Nxd4 Qb6 5. Nb3 Nf6 6. Nc3 {[%emt 0:02:55]} e6 {[%emt 0:01:51]} 7. Be3 {[%emt 0:02:17]} Qc7 {[%emt 0:00:31]} 8. a3 {[%emt 0:13:29]} a6 {[%emt 0:00:40]} 9. f4 {[%emt 0:01:23]} d6 {[%emt 0:00:30]} 10. Qf3 {[%emt 0:08:18]} Be7 {[%emt 0:01:12]} 11. Bd3 {[%emt 0:00:49]} b5 {[%emt 0:02:32]} 12. e5 {[%emt 0:16:37]} dxe5 {[%emt 0:03:56]} 13. fxe5 {[%emt 0:02:56]} Nd7 {[%emt 0:01:04]} 14. O-O {[%emt 0:00:21]} Ndxe5 {[%emt 0:15:13]} 15. Qg3 {[%emt 0:00:34]} g6 {[%emt 0:06:26]} 16. Be4 {[%emt 0:15:28]} Bb7 {[%emt 0:20:05]} 17. Nd4 {[%emt 0:03:40]} Bd6 {[%emt 0:03:32]} 18. Ndxb5 {[%emt 0:02:03]} axb5 {[%emt 0:00:34]} 19. Nxb5 {[%emt 0:00:02]} Qb8 {[%emt 0:02:46]} 20. Bxc6+ {[%emt 0:04:38]} Bxc6 {[%emt 0:00:49]} 21. Nxd6+ {[%emt 0:00:02]} Qxd6 {[%emt 0:00:10]} 22. Rad1 {[%emt 0:00:04]} Qc7 {[%emt 0:13:03]} 23. Bd4 {[%emt 0:02:32]} f6 {[%emt 0:12:47]} 24. Rxf6 {[%emt 0:00:23]} O-O-O {[%emt 0:00:13]} 25. Rff1 {[%emt 0:03:48]} Rd5 {[%emt 0:00:54]} 26. c4 {[%emt 0:01:10]} Rxd4 27. Rxd4 {[%emt 0:00:01]} Re8 {[%emt 0:05:42]} 28. b4 {[%emt 0:03:22]} h5 {[%emt 0:03:21]} 29. b5 {[%emt 0:05:07]} Bb7 {[%emt 0:02:34]} 30. Re1 {[%emt 0:00:08]} Ng4 {[%emt 0:01:37]} 31. Qxc7+ {[%emt 0:00:10]} Kxc7 {[%emt 0:00:04]} 32. c5 {[%emt 0:00:08]} Nf6 {[%emt 0:00:44]} 33. c6 {[%emt 0:00:55]} Bc8 {[%emt 0:00:12]} 34. a4 {[%emt 0:05:35]} e5 {[%emt 0:00:47]} 35. Rc4 {[%emt 0:00:02]} Kb6 {[%emt 0:02:22]} 36. c7 {[%emt 0:01:20]} Nd5 {[%emt 0:01:22]} 37. Rc6+ {[%emt 0:00:42]} Kb7 {[%emt 0:00:07]} 38. Rxg6 {[%emt 0:02:16]} Nxc7 {[%emt 0:01:07]} 39. Rg5 {[%emt 0:02:16]} e4 {[%emt 0:00:20]} 40. Rxh5 {[%emt 0:00:44]} Kb6 {[%emt 0:30:30]} 41. Re3 {[%emt 0:31:40]} Bb7 {[%emt 0:00:46]} 42. Rh6+ {[%emt 0:00:52]} Ka5 {[%emt 0:00:18]} 43. Rh7 {[%emt 0:00:12]} Nd5 {[%emt 0:00:39]} 44. Re1 {[%emt 0:00:39]} Bc8 {[%emt 0:00:00]} 45. Rh4 {[%emt 0:00:00]} e3 {[%emt 0:00:00]} 46. Rd4 {[%emt 0:00:00]} Bb7 {[%emt 0:00:00]} 47. g3 {[%emt 0:00:00]} Nb4 {[%emt 0:00:00]} 48. Rd7 {[%emt 0:00:00]} Bf3 {[%emt 0:00:00]} 49. Rc1 {[%emt 0:00:00]} e2 {[%emt 0:00:00]} 50. Kf2 {[%emt 0:00:00]} Bg4 {[%emt 0:00:00]} 51. Rd2 {[%emt 0:01:24]} Rf8+ {[%emt 0:00:00]} 52. Kg1 {[%emt 0:01:22]} Re8 {[%emt 0:00:00]} 53. Kf2 {[%emt 0:00:46]} Rf8+ {[%emt 0:00:00]} 54. Kg1 {[%emt 0:00:01]} Re8 {[%emt 0:00:00]} 1/2-1/2

[Event "Asian Nation Cup Women 2018"]
[Site "Hamedan"]
[Date "2018.07.29"]
[Round "2"]
[White "Nguyen, Thi Thanh An"]
[Black "Nakhbayeva, Guliskhan"]
[Result "1-0"]
[ECO "E32"]
[WhiteElo "2257"]
[BlackElo "2352"]
[Annotator "NA"]
[PlyCount "109"]
[EventDate "2018.07.27"]
[EventType "swiss"]
[EventCountry "IRI"]
[SourceTitle "playchess.com"]
[Source "ChessBase"]
[SourceQuality "1"]
[WhiteTeam "Iran"]
[BlackTeam "Uzbekistan"]
[WhiteTeamCountry "IRI"]
[BlackTeamCountry "UZB"]
[TimeControl "40/5400+30:1800+30"]

1. d4 {[%emt 0:00:00]} Nf6 {[%emt 0:00:03]} 2. c4 {[%emt 0:01:35]} e6 {[%emt 0:00:30]} 3. Nc3 {[%emt 0:00:30]} Bb4 {[%emt 0:00:30]} 4. Qc2 {[%emt 0:00:30]} O-O {[%emt 0:00:30]} 5. a3 {[%emt 0:00:30]} Bxc3+ {[%emt 0:00:30]} 6. Qxc3 b5 7. cxb5 {[%emt 0:01:00]} c6 {[%emt 0:00:00]} 8. Qg3 {[%emt 0:01:53]} Ne4 {[%emt 0:02:17]} 9. Qd3 {[%emt 0:00:40]} d5 {[%emt 0:00:42]} 10. Nf3 {[%emt 0:04:16]} cxb5 {[%emt 0:00:31]} 11. e3 {[%emt 0:01:12]} a6 {[%emt 0:13:33]} 12. Be2 {[%emt 0:00:21]} Nc6 {[%emt 0:01:46]} 13. Bd2 {[%emt 0:00:16]} Bd7 {[%emt 0:00:38]} 14. O-O {[%emt 0:00:37]} Qb6 {[%emt 0:00:28]} 15. Rfc1 {[%emt 0:09:28]} Rfc8 {[%emt 0:01:00]} 16. Be1 {[%emt 0:02:57]} h6 {[%emt 0:07:17]} 17. Nd2 {[%emt 0:12:23]} Nxd2 {[%emt 0:09:19]} 18. Bxd2 {[%emt 0:02:42]} Rc7 {[%emt 0:00:16]} 19. Rc5 {[%emt 0:08:41]} Ne5 {[%emt 0:08:23]} 20. Qc3 {[%emt 0:01:22]} Rxc5 {[%emt 0:03:45]} 21. dxc5 {[%emt 0:00:26]} Qc7 {[%emt 0:00:27]} 22. b3 {[%emt 0:02:12]} Nc6 {[%emt 0:03:34]} 23. Rd1 {[%emt 0:03:20]} e5 {[%emt 0:01:51]} 24. Bc1 {[%emt 0:04:11]} Be6 {[%emt 0:01:01]} 25. b4 {[%emt 0:00:54]} f6 {[%emt 0:04:41]} 26. Bb2 {[%emt 0:03:08]} Rd8 {[%emt 0:04:21]} 27. Qc2 {[%emt 0:05:32]} Qf7 {[%emt 0:04:04]} 28. Bd3 {[%emt 0:02:08]} f5 {[%emt 0:00:50]} 29. Qe2 {[%emt 0:00:52]} f4 {[%emt 0:11:58]} 30. Bc2 {[%emt 0:03:06]} fxe3 {[%emt 0:05:19]} 31. fxe3 {[%emt 0:03:20]} Qe7 {[%emt 0:03:00]} 32. Qh5 {[%emt 0:02:07]} Qf7 {[%emt 0:03:48]} 33. Bg6 {[%emt 0:04:18]} Qc7 {[%emt 0:00:02]} 34. Rf1 {[%emt 0:03:59]} Rd7 {[%emt 0:02:46]} 35. Qf3 {[%emt 0:05:53]} Rd8 {[%emt 0:00:36]} 36. Qh5 {[%emt 0:01:13]} Rd7 {[%emt 0:00:08]} 37. Qf3 {[%emt 0:02:37]} Rd8 {[%emt 0:00:03]} 38. h3 {[%emt 0:00:11]} a5 {[%emt 0:01:11]} 39. Qg3 {[%emt 0:00:18]} axb4 {[%emt 0:01:11]} 40. axb4 {[%emt 0:00:05]} Ra8 {[%emt 0:35:15]} 41. Bb1 {[%emt 0:31:29]} Bf7 {[%emt 0:00:00]} 42. Qg4 {[%emt 0:00:00]} Re8 {[%emt 0:00:00]} 43. Bd3 {[%emt 0:00:00]} Rb8 {[%emt 0:00:00]} 44. Rf3 {[%emt 0:00:00]} Qe7 {[%emt 0:00:00]} 45. Rg3 {[%emt 0:00:00]} Qf6 {[%emt 0:00:00]} 46. Qd7 {[%emt 0:00:00]} Nxb4 {[%emt 0:00:00]} 47. Qc7 {[%emt 0:02:08]} Nxd3 {[%emt 0:01:03]} 48. Qxb8+ {[%emt 0:00:13]} Kh7 {[%emt 0:00:02]} 49. Rf3 {[%emt 0:01:18]} Qe6 {[%emt 0:03:32]} 50. Qxb5 {[%emt 0:00:40]} Bg6 {[%emt 0:00:08]} 51. Qb6 {[%emt 0:01:43]} Qe8 {[%emt 0:00:35]} 52. Rg3 {[%emt 0:00:45]} Be4 {[%emt 0:01:18]} 53. c6 {[%emt 0:01:50]} Nxb2 {[%emt 0:01:44]} 54. Qb7 {[%emt 0:01:07]} Bg6 {[%emt 0:00:10]} 55. c7 {[%emt 0:00:17]} 1-0

[Event "Asian Nation Cup Women 2018"]
[Site "Hamedan"]
[Date "2018.07.30"]
[Round "3"]
[White "Khademalsharieh, Sarasadat"]
[Black "Hoang, Thi Bao Tram"]
[Result "1-0"]
[ECO "D12"]
[WhiteElo "2408"]
[BlackElo "2364"]
[Annotator "NA"]
[PlyCount "91"]
[EventDate "2018.07.27"]
[EventType "swiss"]
[EventCountry "IRI"]
[SourceTitle "playchess.com"]
[Source "ChessBase"]
[SourceQuality "1"]
[WhiteTeam "Iran"]
[BlackTeam "Vietnam"]
[WhiteTeamCountry "IRI"]
[BlackTeamCountry "VIE"]
[TimeControl "40/5400+30:1800+30"]

1. d4 {[%emt 0:00:00]} d5 {[%emt 0:00:37]} 2. c4 {[%emt 0:00:00]} c6 {[%emt 0:00:28]} 3. Nf3 {[%emt 0:00:25]} Nf6 {[%emt 0:00:22]} 4. e3 {[%emt 0:00:06]} Bf5 {[%emt 0:01:55]} 5. Nc3 {[%emt 0:00:08]} e6 {[%emt 0:00:30]} 6. Nh4 {[%emt 0:00:28]} Be4 {[%emt 0:03:18]} 7. f3 {[%emt 0:00:13]} Bg6 {[%emt 0:00:21]} 8. Qb3 {[%emt 0:00:09]} Qc7 {[%emt 0:00:37]} 9. Bd2 {[%emt 0:00:24] D12: Slav Defence: 3 Nf3 Nf6 4 e3 Bf5} Be7 {[%emt 0:01:39] LiveBook: 607 Games} 10. Nxg6 {[%emt 0:02:57]} (10. g3 Nbd7 11. cxd5 exd5 12. O-O-O a5 13. Nxg6 hxg6 14. Qc2 a4 15. e4 a3 16. e5 axb2+ {0-1 (59) Le,Q (2737)-Mamedov,R (2709) Huaian 2017}) 10... hxg6 {[%emt 0:00:13]} 11. cxd5 {[%emt 0:02:08]} Nxd5 12. O-O-O {[%emt 0:09:49]} Nd7 {[%emt 0:08:26]} 13. Nxd5 {[%emt 0:02:59]} exd5 {[%emt 0:13:59]} 14. Kb1 {[%emt 0:01:27]} O-O-O 15. Rc1 {[%emt 0:03:23]} Kb8 16. h3 {[%emt 0:11:23] [#]} Rhe8 {[%emt 0:08:20]} ({Predecessor:} 16... Qd6 $146) 17. Be2 {[%emt 0:06:16]} Bf6 {[%emt 0:05:33]} 18. Rc2 {[%emt 0:11:34]} Nb6 {[%emt 0:05:52]} 19. Rd1 {[%emt 0:05:41]} Re6 {[%emt 0:07:19]} 20. a4 {[%emt 0:01:55]} Rde8 {[%emt 0:02:45]} 21. a5 {[%emt 0:02:38]} Nc8 {[%emt 0:01:57]} 22. Rdc1 {[%emt 0:04:41]} Qd7 {[%emt 0:02:44]} 23. Bf1 {[%emt 0:05:52]} Ka8 {[%emt 0:02:18]} 24. e4 {[%emt 0:08:28]} Ne7 {[%emt 0:03:18]} 25. e5 {[%emt 0:01:59]} Bh4 {[%emt 0:00:38]} 26. g4 {[%emt 0:05:52]} g5 {[%emt 0:07:13]} 27. Bd3 {[%emt 0:01:41]} Rh6 {[%emt 0:02:23]} 28. a6 {[%emt 0:01:22]} Rb8 {[%emt 0:04:43]} 29. Bb4 {[%emt 0:02:52]} bxa6 {[%emt 0:02:45]} 30. Qa3 {[%emt 0:00:18]} Nc8 {[%emt 0:00:09]} 31. Bf8 {[%emt 0:03:27]} Nb6 {[%emt 0:05:35]} 32. Bd6 {[%emt 0:01:12]} Rc8 {[%emt 0:01:09]} 33. Bxa6 {[%emt 0:02:02]} Rhh8 {[%emt 0:00:09]} 34. Bxc8 {[%emt 0:01:04]} Rxc8 {[%emt 0:00:06]} 35. Bc5 {[%emt 0:00:40]} Nc4 {[%emt 0:01:23]} 36. Qa4 {[%emt 0:02:12]} Rb8 {[%emt 0:00:18]} 37. b3 {[%emt 0:00:21]} Rb5 {[%emt 0:00:40]} 38. Ra2 {[%emt 0:00:30]} a5 {[%emt 0:07:21]} 39. Ka1 {[%emt 0:00:44]} Ne3 {[%emt 0:01:44]} 40. Re2 {[%emt 0:00:38]} Bg3 {[%emt 0:00:08]} 41. Rxe3 {[%emt 0:30:13]} Bf4 {[%emt 0:30:07]} 42. Rec3 {[%emt 0:00:09]} Bxc1 {[%emt 0:00:08]} 43. Rxc1 {[%emt 0:00:02]} Qb7 {[%emt 0:00:41]} 44. Ka2 {[%emt 0:00:31]} Kb8 {[%emt 0:00:31]} 45. Bd6+ {[%emt 0:00:28]} Kc8 {[%emt 0:00:07]} 46. Rc5 {[%emt 0:00:22]} 1-0

[Event "Asian Nation Cup Women 2018"]
[Site "Hamedan"]
[Date "2018.07.30"]
[Round "3"]
[White "Nakhbayeva, Guliskhan"]
[Black "Guo, Qi"]
[Result "1/2-1/2"]
[ECO "E52"]
[WhiteElo "2352"]
[BlackElo "2361"]
[Annotator "NA"]
[PlyCount "45"]
[EventDate "2018.07.27"]
[EventType "swiss"]
[EventCountry "IRI"]
[SourceTitle "playchess.com"]
[Source "ChessBase"]
[SourceQuality "1"]
[WhiteTeam "Kazakhstan"]
[BlackTeam "China"]
[WhiteTeamCountry "KAZ"]
[BlackTeamCountry "CHN"]
[TimeControl "40/5400+30:1800+30"]

1. d4 {[%emt 0:00:00]} Nf6 {[%emt 0:00:00]} 2. c4 {[%emt 0:00:00]} e6 {[%emt 0:00:03]} 3. Nc3 {[%emt 0:00:00]} Bb4 {[%emt 0:00:51]} 4. e3 {[%emt 0:00:14]} O-O {[%emt 0:00:18]} 5. Bd3 {[%emt 0:00:05]} d5 {[%emt 0:00:09]} 6. Nf3 {[%emt 0:00:08]} b6 {[%emt 0:01:15]} 7. a3 {[%emt 0:00:38]} Bd6 {[%emt 0:02:41]} 8. e4 {[%emt 0:00:27]} dxe4 {[%emt 0:05:58]} 9. Nxe4 {[%emt 0:00:04]} Nbd7 {[%emt 0:00:55]} 10. O-O {[%emt 0:01:50]} Bb7 {[%emt 0:00:50]} 11. Nxd6 {[%emt 0:00:08]} cxd6 {[%emt 0:00:18]} 12. Bf4 {[%emt 0:02:31]} Qe7 {[%emt 0:03:51]} 13. Re1 {[%emt 0:03:27]} d5 {[%emt 0:05:09]} 14. Rc1 {[%emt 0:18:41]} Rac8 {[%emt 0:02:10]} 15. Nd2 {[%emt 0:19:11]} Rfd8 {[%emt 0:02:40]} 16. Qe2 {[%emt 0:11:28]} dxc4 {[%emt 0:03:13]} 17. Nxc4 {[%emt 0:00:28]} Nf8 {[%emt 0:00:22]} 18. Be5 $15 {[%emt 0:04:33]} Ng6 {[%emt 0:03:13]} 19. h3 {[%emt 0:02:43]} Nd5 {[%emt 0:08:31]} 20. Qh5 {[%emt 0:04:02]} Nf6 {[%emt 0:00:21]} 21. Qe2 {[%emt 0:01:28]} Nd5 {[%emt 0:00:05]} 22. Qh5 {[%emt 0:02:02]} Nf6 {[%emt 0:00:06]} 23. Qe2 {[%emt 0:01:18]} 1/2-1/2

[Event "Asian Nation Cup Women 2018"]
[Site "Hamedan"]
[Date "2018.07.30"]
[Round "3"]
[White "Zhai, Mo"]
[Black "Dauletova, Gulmira"]
[Result "1-0"]
[ECO "E21"]
[WhiteElo "2350"]
[BlackElo "2287"]
[Annotator "NA"]
[PlyCount "151"]
[EventDate "2018.07.27"]
[EventType "swiss"]
[EventCountry "IRI"]
[SourceTitle "playchess.com"]
[Source "ChessBase"]
[SourceQuality "1"]
[WhiteTeam "China"]
[BlackTeam "Kazakhstan"]
[WhiteTeamCountry "CHN"]
[BlackTeamCountry "KAZ"]
[TimeControl "40/5400+30:1800+30"]

1. d4 {[%emt 0:00:00]} Nf6 {[%emt 0:00:00]} 2. c4 {[%emt 0:00:00]} e6 {[%emt 0:00:00]} 3. Nc3 {[%emt 0:00:09]} Bb4 {[%emt 0:00:13]} 4. Nf3 {[%emt 0:00:13]} d5 {[%emt 0:01:11]} 5. Qa4+ {[%emt 0:01:11] LiveBook: 1006 Games} Nc6 {[%emt 0:00:19]} 6. e3 {[%emt 0:00:12]} Bd7 {[%emt 0:01:54]} 7. Qc2 {[%emt 0:00:54]} dxc4 {[%emt 0:10:03]} 8. Bxc4 {[%emt 0:00:20]} Na5 {[%emt 0:00:29]} 9. Bd3 c5 {[%emt 0:01:53]} 10. O-O {[%emt 0:10:47]} Rc8 {[%emt 0:07:28]} 11. Bd2 {[%emt 0:04:21]} cxd4 {[%emt 0:16:54]} 12. Nxd4 $11 O-O {[%emt 0:05:26]} 13. Qd1 {[%emt 0:19:38]} Nc6 {[%emt 0:18:02]} 14. Nf3 {[%emt 0:08:34]} Qe7 {[%emt 0:04:56]} 15. Qe2 {[%emt 0:03:23]} e5 {[%emt 0:05:19]} 16. Ng5 {[%emt 0:05:41]} Bxc3 {[%emt 0:06:23]} 17. Bxc3 {[%emt 0:00:09]} h6 {[%emt 0:04:18]} 18. Ne4 {[%emt 0:00:18]} Nd5 {[%emt 0:02:13]} 19. Rfd1 {[%emt 0:03:22]} Nxc3 {[%emt 0:03:13]} 20. Nxc3 {[%emt 0:01:03]} Nb4 {[%emt 0:00:03]} 21. Be4 {[%emt 0:01:25]} Bc6 {[%emt 0:00:01]} 22. a3 {[%emt 0:08:34]} Bxe4 {[%emt 0:01:51]} 23. axb4 {[%emt 0:00:52]} Bg6 {[%emt 0:03:00]} 24. Rxa7 {[%emt 0:02:56]} Rfd8 {[%emt 0:02:15]} 25. b5 {[%emt 0:13:14]} Rxd1+ {[%emt 0:02:53]} 26. Qxd1 {[%emt 0:00:07]} Rd8 {[%emt 0:00:08]} 27. Qe2 {[%emt 0:03:48]} Bd3 {[%emt 0:01:10]} 28. Qf3 {[%emt 0:00:23]} e4 {[%emt 0:00:11]} 29. Qh5 {[%emt 0:00:11]} g6 {[%emt 0:02:32]} 30. Qxh6 {[%emt 0:00:44]} Bxb5 {[%emt 0:00:15]} 31. h4 {[%emt 0:02:16]} Bc6 {[%emt 0:00:27]} 32. Ra5 {[%emt 0:04:21]} Qb4 {[%emt 0:00:20]} 33. Qg5 {[%emt 0:00:09]} Re8 {[%emt 0:01:00]} 34. h5 {[%emt 0:01:19]} Re6 {[%emt 0:00:33]} 35. hxg6 {[%emt 0:01:55]} fxg6 {[%emt 0:00:21]} 36. Ra8+ {[%emt 0:00:14]} Be8 {[%emt 0:00:30]} 37. Qd5 {[%emt 0:00:37]} Qe7 {[%emt 0:00:29]} 38. Nxe4 {[%emt 0:00:18]} Kg7 {[%emt 0:00:37]} 39. Qd4+ {[%emt 0:04:48]} Kf7 {[%emt 0:00:01]} 40. Qd5 {[%emt 0:00:40]} Kg7 {[%emt 0:00:08]} 41. Rb8 {[%emt 0:03:39]} Bc6 {[%emt 0:11:53]} 42. Qd4+ {[%emt 0:00:09]} Kf7 {[%emt 0:00:21]} 43. Rh8 {[%emt 0:01:37]} Bxe4 {[%emt 0:02:03]} 44. Rh7+ {[%emt 0:00:07]} Ke8 {[%emt 0:00:10]} 45. Rxe7+ {[%emt 0:00:09]} Kxe7 {[%emt 0:00:17]} 46. b4 {[%emt 0:03:16]} Bc6 {[%emt 0:03:03]} 47. Qc5+ {[%emt 0:02:16]} Kd8 {[%emt 0:01:18]} 48. Qb6+ {[%emt 0:02:34]} Kc8 {[%emt 0:01:19]} 49. b5 {[%emt 0:01:16]} Bd7 {[%emt 0:00:05]} 50. Qc5+ {[%emt 0:00:07]} Kd8 {[%emt 0:00:45]} 51. b6 {[%emt 0:01:03]} Bc6 {[%emt 0:02:54]} 52. f3 {[%emt 0:00:24]} Ke8 {[%emt 0:01:28]} 53. Kf2 {[%emt 0:00:25]} Kf7 {[%emt 0:00:30]} 54. e4 {[%emt 0:00:04]} Re7 {[%emt 0:01:24]} 55. Ke3 {[%emt 0:00:55]} Re6 {[%emt 0:02:03]} 56. Kf4 {[%emt 0:00:37]} Re7 {[%emt 0:05:23]} 57. Kg5 {[%emt 0:00:20]} Re6 {[%emt 0:00:21]} 58. Qc4 {[%emt 0:00:48]} Ke7 {[%emt 0:00:44]} 59. Qd4 {[%emt 0:00:22]} Kf7 {[%emt 0:00:39]} 60. Kh6 {[%emt 0:02:09]} Rf6 {[%emt 0:03:11]} 61. Qc4+ {[%emt 0:03:48]} Re6 {[%emt 0:00:10]} 62. e5 {[%emt 0:00:19]} Ke7 {[%emt 0:01:12]} 63. Qb4+ {[%emt 0:00:38]} Kf7 {[%emt 0:00:37]} 64. Qf4+ {[%emt 0:00:11]} Kg8 {[%emt 0:00:36]} 65. g3 {[%emt 0:02:39]} Bd5 {[%emt 0:00:46]} 66. Qd4 {[%emt 0:00:48]} Bc6 {[%emt 0:00:35]} 67. Qd8+ {[%emt 0:00:21]} Kf7 {[%emt 0:00:21]} 68. Qd4 {[%emt 0:00:56]} Kg8 {[%emt 0:00:16]} 69. f4 {[%emt 0:00:27]} Kf7 {[%emt 0:00:42]} 70. g4 {[%emt 0:01:31]} Ke8 {[%emt 0:00:50]} 71. Kg7 {[%emt 0:00:33]} Bd7 {[%emt 0:00:28]} 72. Qc5 {[%emt 0:01:22]} Re7+ {[%emt 0:00:30]} 73. Kxg6 {[%emt 0:00:02]} Bxg4 {[%emt 0:00:04]} 74. f5 {[%emt 0:00:18]} Rd7 {[%emt 0:00:58]} 75. e6 {[%emt 0:01:18]} Rd8 {[%emt 0:00:30]} 76. Kf6 {[%emt 0:00:17]} 1-0

[Event "Asian Nation Cup Women 2018"]
[Site "Hamedan"]
[Date "2018.07.30"]
[Round "3"]
[White "Pham, Le Thao Nguyen"]
[Black "Hejazipour, Mitra"]
[Result "1-0"]
[ECO "D02"]
[WhiteElo "2334"]
[BlackElo "2276"]
[Annotator "NA"]
[PlyCount "87"]
[EventDate "2018.07.27"]
[EventType "swiss"]
[EventCountry "IRI"]
[SourceTitle "playchess.com"]
[Source "ChessBase"]
[SourceQuality "1"]
[WhiteTeam "Vietnam"]
[BlackTeam "Iran"]
[WhiteTeamCountry "VIE"]
[BlackTeamCountry "IRI"]
[TimeControl "40/5400+30:1800+30"]

1. d4 {[%emt 0:00:23]} d5 {[%emt 0:00:00]} 2. Nf3 {[%emt 0:00:39]} Nf6 {[%emt 0:00:16]} 3. c4 {[%emt 0:00:38]} e6 {[%emt 0:00:14]} 4. g3 {[%emt 0:00:57]} Bb4+ {[%emt 0:00:36]} 5. Bd2 {[%emt 0:00:31]} Be7 {[%emt 0:01:16]} 6. Bg2 {[%emt 0:00:17]} O-O {[%emt 0:00:16]} 7. O-O {[%emt 0:00:33]} c6 {[%emt 0:00:45]} 8. Qc2 {[%emt 0:00:27]} b6 {[%emt 0:00:18]} 9. Bf4 {[%emt 0:03:12]} Ba6 {[%emt 0:00:25] LiveBook: 225 Games} 10. Nbd2 {[%emt 0:13:19]} Nbd7 {[%emt 0:11:07]} 11. Rfc1 {[%emt 0:13:49]} c5 {[%emt 0:18:41]} 12. Ne5 $11 {[%emt 0:17:45]} Bb7 {[%emt 0:36:21]} 13. dxc5 {[%emt 0:14:58]} Bxc5 {[%emt 0:02:18]} 14. Nd3 {[%emt 0:02:11]} Be7 {[%emt 0:02:37]} 15. Qd1 {[%emt 0:03:52]} Nc5 {[%emt 0:10:18]} 16. Nxc5 {[%emt 0:03:18]} bxc5 {[%emt 0:01:31]} 17. cxd5 {[%emt 0:05:35]} exd5 {[%emt 0:00:45]} 18. Rc2 {[%emt 0:00:49]} Qb6 {[%emt 0:05:39]} 19. Rac1 {[%emt 0:03:10]} a5 {[%emt 0:06:22]} 20. Qe1 {[%emt 0:04:49]} Rfe8 {[%emt 0:07:31]} 21. Be3 {[%emt 0:05:16]} d4 {[%emt 0:03:44]} 22. Nc4 {[%emt 0:00:46]} Qa6 {[%emt 0:00:19]} 23. Bxb7 {[%emt 0:00:44]} Qxb7 {[%emt 0:00:01]} 24. Bg5 {[%emt 0:00:32]} Ne4 {[%emt 0:03:06]} 25. Bxe7 {[%emt 0:02:04]} Rxe7 {[%emt 0:01:09]} 26. Qf1 {[%emt 0:01:22]} Ra6 {[%emt 0:01:51]} 27. Nd2 {[%emt 0:02:18]} Nxd2 {[%emt 0:01:51]} 28. Rxd2 {[%emt 0:00:02]} Qb4 {[%emt 0:01:52]} 29. Qd1 {[%emt 0:01:59]} h5 {[%emt 0:00:53]} 30. Rdc2 {[%emt 0:01:45]} Rae6 {[%emt 0:00:47]} 31. Qd3 {[%emt 0:02:52]} g6 {[%emt 0:00:26]} 32. b3 {[%emt 0:01:06]} Re5 {[%emt 0:00:46]} 33. Rc4 {[%emt 0:01:51]} Qb6 {[%emt 0:00:11]} 34. R1c2 {[%emt 0:00:25]} h4 {[%emt 0:00:37]} 35. gxh4 {[%emt 0:02:23]} Qd6 {[%emt 0:00:58]} 36. Qg3 {[%emt 0:00:50]} Qf6 {[%emt 0:00:29]} 37. Rxc5 {[%emt 0:02:08]} Rxc5 {[%emt 0:00:30]} 38. Rxc5 {[%emt 0:00:02]} Rxe2 {[%emt 0:00:08]} 39. h5 {[%emt 0:00:53]} Qe7 {[%emt 0:01:01]} 40. Rc8+ {[%emt 0:00:30]} Kg7 {[%emt 0:00:00]} 41. Rc7 {[%emt 0:09:12]} Re1+ {[%emt 0:14:31]} 42. Kg2 {[%emt 0:00:09]} Qe4+ {[%emt 0:00:13]} 43. f3 {[%emt 0:05:00]} Qe3 {[%emt 0:02:31]} 44. Qxg6+ {[%emt 0:00:10]} 1-0

[Event "Asian Nation Cup Women 2018"]
[Site "Hamedan"]
[Date "2018.07.30"]
[Round "3"]
[White "Alinasab, Mobina"]
[Black "Nguyen, Thi Thanh An"]
[Result "1-0"]
[ECO "B06"]
[WhiteElo "2281"]
[BlackElo "2257"]
[Annotator "NA"]
[PlyCount "79"]
[EventDate "2018.07.27"]
[EventType "swiss"]
[EventCountry "IRI"]
[SourceTitle "playchess.com"]
[Source "ChessBase"]
[SourceQuality "1"]
[WhiteTeam "Iran"]
[BlackTeam "Vietnam"]
[WhiteTeamCountry "IRI"]
[BlackTeamCountry "VIE"]
[TimeControl "40/5400+30:1800+30"]

1. e4 {[%emt 0:00:00]} g6 {[%emt 0:00:13]} 2. d4 {[%emt 0:00:00]} Bg7 {[%emt 0:00:07]} 3. Nc3 {[%emt 0:00:00]} d5 {[%emt 0:00:33]} 4. e5 {[%emt 0:00:47]} f6 $11 {[%emt 0:00:21]} 5. f4 {[%emt 0:01:55]} Nh6 {[%emt 0:00:14]} 6. Nf3 {[%emt 0:00:55]} Bg4 {[%emt 0:00:29]} 7. h3 {[%emt 0:04:48]} Bxf3 {[%emt 0:00:25]} 8. Qxf3 {[%emt 0:00:08]} Nf5 {[%emt 0:03:53]} 9. Qxd5 {[%emt 0:17:54]} Nxd4 {[%emt 0:05:20]} 10. exf6 {[%emt 0:01:53]} Bxf6 {[%emt 0:05:39]} 11. Qxd8+ {[%emt 0:01:21]} Kxd8 {[%emt 0:00:03]} 12. Bd3 {[%emt 0:00:07]} Bh4+ {[%emt 0:00:32]} 13. Kd1 {[%emt 0:00:08]} Nbc6 {[%emt 0:03:24]} 14. a3 {[%emt 0:07:30]} Kd7 {[%emt 0:03:02]} 15. Ne4 {[%emt 0:02:29]} Rad8 {[%emt 0:00:02]} 16. g3 Bf6 {[%emt 0:00:08]} 17. Nxf6+ {[%emt 0:05:19]} exf6 18. Ke1 {[%emt 0:05:49]} Kc8 {[%emt 0:02:42]} 19. Be3 Nf5 20. Bxf5+ {[%emt 0:03:06]} gxf5 {[%emt 0:02:12]} 21. Kf2 {[%emt 0:00:17]} h5 {[%emt 0:02:42]} 22. Rad1 {[%emt 0:00:24]} b6 23. Kf3 {[%emt 0:00:11]} Rxd1 {[%emt 0:03:00]} 24. Rxd1 Rh7 25. b4 {[%emt 0:02:40]} a6 {[%emt 0:06:22]} 26. c4 Rd7 {[%emt 0:04:19]} 27. Rd2 {[%emt 0:16:14]} Kd8 28. g4 {[%emt 0:02:31]} Rxd2 {[%emt 0:06:46]} 29. Bxd2 {[%emt 0:00:06]} hxg4+ {[%emt 0:07:47]} 30. hxg4 {[%emt 0:00:40]} Nd4+ {[%emt 0:14:31]} 31. Ke3 Nc2+ {[%emt 0:00:07]} 32. Kd3 {[%emt 0:01:47]} Nxa3 33. Bc1 Nxc4 {[%emt 0:01:40]} 34. Kxc4 {[%emt 0:12:09]} fxg4 {[%emt 0:12:09]} 35. Kd4 Ke7 36. Ke4 {[%emt 0:02:59]} c5 {[%emt 0:03:48]} 37. bxc5 {[%emt 0:03:22]} bxc5 38. f5 {[%emt 0:01:25]} c4 {[%emt 0:05:11]} 39. Bb2 {[%emt 0:00:07]} a5 {[%emt 0:09:56]} 40. Kf4 {[%emt 0:00:15]} 1-0